[Event "71st Greek Championship 2022"]
[Site "Athens"]
[Date "2022.12.08"]
[Round "6.1"]
[White "Skembris, Spyridon"]
[Black "Markidis, Konstantinos"]
[Result "1/2-1/2"]
[ECO "A17"]
[WhiteElo "2381"]
[BlackElo "2290"]
[Annotator "TA"]
[PlyCount "62"]
[EventDate "2022.12.04"]
[EventType "tourn"]
[EventCountry "GRE"]
[SourceTitle "playchess.com"]
[Source "ChessBase"]
[SourceQuality "1"]
[TimeControl "40/5400+30:1800+30"]

{[%evp 9,62,11,4,8,6,0,0,0,0,0,0,-4,-4,0,-2,0,0,0,0,0,0,0,0,0,0,0,1,-11,0,-45,-49,-43,-40,-54,-37,-43,-43,-70,-68,-106,-103,-204,-101,-87,-37,-38,-14,-13,0,-38,-12,-55,-7,-12,-3]} 1. c4 {[%emt 0:00:12]} e6 {[%emt 0:00:48]} 2. Nf3 {[%emt 0:00:31]} d5 {[%emt 0:00:18]} 3. e3 {[%emt 0:01:56]} Nf6 {[%emt 0:00:24]} 4. Nc3 {[%emt 0:01:08]} b6 {[%emt 0:05:29]} 5. b3 {[%emt 0:04:23]} Bb7 {[%emt 0:00:24]} 6. Bb2 {[%emt 0:00:15] A17: English Opening: 1...Nf6 with ...Bb4.} Nbd7 {[%emt 0:00:15]} 7. Be2 {[%emt 0:01:28]} a6 {[%emt 0:00:16]} 8. O-O {[%emt 0:00:29]} Bd6 {[%emt 0:01:58]} 9. Rc1 {[%emt 0:02:33]} O-O {[%emt 0:00:49]} 10. d4 {[%emt 0:05:25]} Qe7 {[%emt 0:05:03]} 11. Rc2 {[%emt 0:04:05]} Rac8 {[%emt 0:10:52] [#]} 12. g3 $146 {[%emt 0:05:40]} ({Predecessor:} 12. Qc1 Ne4 13. cxd5 exd5 14. Qd1 f5 15. Bd3 Ndf6 16. Qe2 b5 17. Nd1 Nd7 18. Ba1 {½-½ (35) Kovacs,D (1782)-Balogh,T (1832) Hungary 2017}) 12... Rfd8 {[%emt 0:12:12]} 13. cxd5 {[%emt 0:01:15]} exd5 {[%emt 0:00:28]} 14. Nh4 {[%emt 0:02:01]} g6 {[%emt 0:10:16] Prevents Nf5.} 15. Bf3 {[%emt 0:01:06]} Ne4 {[%emt 0:01:04]} 16. Bg2 {[%emt 0:02:41]} Nxc3 {[%emt 0:03:15]} 17. Bxc3 {[%emt 0:00:25]} Nf6 {[%emt 0:00:43]} 18. Bb2 {[%emt 0:06:34]} a5 {[%emt 0:06:15]} 19. Re1 {[%emt 0:01:31]} (19. Nf3 $5) 19... Bb4 {[%emt 0:00:55]} 20. Bc3 {[%emt 0:00:46]} Ne4 {[%emt 0:00:20]} (20... c5 {with more complications.} 21. dxc5 bxc5 22. Qc1 Ne4) 21. Bxb4 {[%emt 0:06:17]} axb4 {[%emt 0:00:42]} 22. Bxe4 {[%emt 0:13:24]} dxe4 {[%emt 0:02:13]} 23. Qg4 {[%emt 0:04:58]} c5 {[%emt 0:11:19]} (23... c6 {simplifies} 24. Qe2 h6 25. Ng2 g5) 24. Rec1 {[%emt 0:02:04] [#]} Ba6 $1 {[%emt 0:06:02]} 25. dxc5 {[%emt 0:08:56]} (25. Ng2 $17) 25... bxc5 {[%emt 0:00:31]} (25... Rxc5 $19 26. h3 Bc8) 26. Ng2 $17 {[%emt 0:00:40]} Bd3 {[%emt 0:01:06]} (26... Kg7 $17) 27. Rd2 $15 {[%emt 0:00:50]} c4 {[%emt 0:06:40]} 28. bxc4 {[%emt 0:02:09]} Rxc4 {[%emt 0:00:21]} 29. Rcd1 {[%emt 0:00:45]} Rc2 {[%emt 0:01:31]} 30. Nf4 {[%emt 0:06:49]} Rxd2 {[%emt 0:00:37]} (30... Qc7 $15 31. Nxd3 Rxd2 32. Rxd2 Qc3) 31. Rxd2 $11 {[%emt 0:00:02]} Qc5 {[%emt 0:00:20] Weighted Error Value: White=0.15 (very precise) /Black=0.12 (very precise)} 1/2-1/2

[Event "71st Greek Championship 2022"]
[Site "Athens"]
[Date "2022.12.08"]
[Round "6.2"]
[White "Moutousis, Konstantinos"]
[Black "Alexiadis, Hristos"]
[Result "1/2-1/2"]
[ECO "E49"]
[WhiteElo "2392"]
[BlackElo "2342"]
[Annotator "TA"]
[PlyCount "66"]
[EventDate "2022.12.04"]
[EventType "tourn"]
[EventCountry "GRE"]
[SourceTitle "playchess.com"]
[Source "ChessBase"]
[SourceQuality "1"]
[TimeControl "40/5400+30:1800+30"]

{[%evp 19,66,-2,13,15,33,27,33,36,30,39,41,27,37,25,24,21,22,19,19,19,24,17,25,19,26,14,23,-20,-6,-7,14,8,8,15,22,22,20,10,29,9,10,2,2,7,6,3,6,31,54]} 1. d4 {[%emt 0:00:04]} Nf6 {[%emt 0:00:12]} 2. c4 {[%emt 0:00:53]} e6 {[%emt 0:00:07]} 3. Nc3 {[%emt 0:00:08]} Bb4 {[%emt 0:00:18]} 4. e3 {[%emt 0:00:16]} O-O {[%emt 0:00:08]} 5. Bd3 {[%emt 0:01:22]} d5 {[%emt 0:00:41]} 6. a3 {[%emt 0:00:19]} Bxc3+ {[%emt 0:03:39]} 7. bxc3 {[%emt 0:00:10]} dxc4 {[%emt 0:00:27]} 8. Bxc4 {[%emt 0:00:07]} c5 {[%emt 0:01:29]} 9. Ne2 {[%emt 0:02:07]} Qc7 {[%emt 0:02:46]} 10. Bd3 {[%emt 0:03:03]} b6 $1 {[%emt 0:00:44][%mdl 4] 10...b6 is setting a new trend.} 11. e4 {[%emt 0:03:13] E49: Nimzo-Indian: Rubinstein: 5 Bd3 d5 6 a3 Bxc3+ 7 bxc3.} cxd4 {[%emt 0:02:09]} 12. cxd4 {[%emt 0:00:19]} Ba6 {[%emt 0:01:06]} 13. Bg5 {[%emt 0:07:53]} Bxd3 {[%emt 0:03:24]} 14. Qxd3 {[%emt 0:00:09]} Nbd7 {[%emt 0:00:53][%cal Bb8d7,Bd7e5,Be5c6][%mdl 32] [#]} 15. f3 $146 {[%emt 0:03:07]} ({Predecessor:} 15. O-O Rac8 16. Rfc1 Qb7 17. f3 h6 18. Bxf6 Nxf6 19. a4 Rxc1+ 20. Rxc1 Rc8 21. Rxc8+ Qxc8 {½-½ (47) Savina,A (2350)-Tan,Z (2517) Riadh 2017}) 15... h6 {[%emt 0:14:14]} 16. Bd2 {[%emt 0:08:18]} Rfd8 {[%emt 0:05:52]} 17. a4 {[%emt 0:16:44]} Ne5 {[%emt 0:21:02]} 18. Qb5 {[%emt 0:00:22]} Nc6 {[%emt 0:00:52]} 19. Rc1 {[%emt 0:05:38]} Rac8 {[%emt 0:01:41]} 20. O-O {[%emt 0:04:53]} Qd7 {[%emt 0:01:49]} 21. Bc3 {[%emt 0:00:41]} Ne8 {[%emt 0:00:52]} 22. Rfd1 {[%emt 0:01:37]} Nd6 {[%emt 0:01:26]} 23. Qh5 {[%emt 0:01:54]} Ne7 {[%emt 0:02:23]} 24. a5 $1 {[%emt 0:06:43]} Qb5 {[%emt 0:24:25]} 25. Qxb5 {[%emt 0:00:26]} Nxb5 {[%emt 0:00:04]} 26. axb6 {[%emt 0:00:10]} Nxc3 {[%emt 0:00:25]} 27. Nxc3 {[%emt 0:01:45]} axb6 {[%emt 0:00:04]} 28. Nb5 {[%emt 0:01:36]} Ra8 {[%emt 0:02:18]} 29. Rd2 {[%emt 0:02:59]} Ra4 {[%emt 0:03:02]} 30. Rb2 {[%emt 0:00:22] Prevents Rb4.} f5 {[%emt 0:04:10]} 31. Rc7 {[%emt 0:04:55]} Ng6 {[%emt 0:00:05]} 32. g3 {[%emt 0:15:19]} fxe4 {[%emt 0:00:05]} 33. fxe4 {[%emt 0:00:07]} e5 {[%emt 0:00:34] Weighted Error Value: White=0.07 (flawless) /Black=0.04 (flawless)} 1/2-1/2

[Event "71st Greek Championship 2022"]
[Site "Athens"]
[Date "2022.12.08"]
[Round "6.3"]
[White "Naoum, Spyridon"]
[Black "Koutlas, Nikolaos"]
[Result "1/2-1/2"]
[ECO "D24"]
[WhiteElo "2352"]
[BlackElo "2267"]
[Annotator "TA"]
[PlyCount "81"]
[EventDate "2022.12.04"]
[EventType "tourn"]
[EventCountry "GRE"]
[SourceTitle "playchess.com"]
[Source "ChessBase"]
[SourceQuality "1"]
[TimeControl "40/5400+30:1800+30"]

{[%evp 9,81,11,44,44,47,45,39,39,53,37,48,41,56,35,35,27,35,37,33,36,36,41,61,60,60,17,63,0,25,-13,-13,-42,-20,-252,147,37,30,0,16,8,16,17,63,7,10,6,6,8,8,0,7,0,0,0,0,-5,0,0,0,0,0,0,0,0,0,0,0,0,0,0,0,0,0,0]} 1. d4 {[%emt 0:01:14]} d5 {[%emt 0:01:22]} 2. c4 {[%emt 0:01:16]} e6 {[%emt 0:00:00]} 3. Nf3 Nf6 {[%emt 0:00:34]} 4. Nc3 {[%emt 0:02:54]} dxc4 {[%emt 0:01:49]} 5. e4 {[%emt 0:07:49][%cal Be2e4,Be4e5][%mdl 32]} b5 {[%emt 0:00:16]} (5... Bb4 {keeps more tension.} 6. Bg5 c5 7. Bxc4 cxd4 8. Nxd4 Qa5) 6. e5 {[%emt 0:00:44] Against a6. D24: Queen's Gambit Accepted: 3 Nf3 Nf6 4 Nc3.} Nd5 {[%emt 0:00:12]} 7. Nxb5 {[%emt 0:01:58]} Nb6 {[%emt 0:01:22]} 8. Be2 {[%emt 0:03:55] White is slightly better.} Nc6 {[%cal Bb8c6,Bc6b4,Bb4d3][%mdl 32]} 9. O-O {[%emt 0:00:25]} Be7 {[%emt 0:01:10] Against Bg5} 10. Be3 {[%emt 0:00:00] 10.Qd2 might become the main line.} O-O {[%emt 0:01:01]} 11. Qc1 {[%emt 0:00:00]} Rb8 {[%emt 0:02:29]} 12. Rd1 {[%emt 0:07:15]} Ba6 {[%emt 0:11:23]} 13. Nc3 {[%emt 0:03:19]} (13. Bxc4 $2 Nxc4 14. Qxc4 Bxb5 $19) 13... Nb4 {[%emt 0:02:32]} 14. a3 {[%emt 0:40:16] [#]} Nd3 $146 {[%emt 0:05:37]} ({Predecessor:} 14... N4d5 15. b4 Nxc3 16. Qxc3 Bb5 17. Qc1 Ra8 18. Nd2 a5 19. bxa5 Rxa5 20. Nxc4 Bxc4 21. Bxc4 Rxa3 22. Rxa3 Bxa3 {½-½ (35) Gretarsson,H (2472)-Niedbala,B (2381) Piestany 2022}) 15. Qd2 {[%emt 0:00:05][%cal Ob2b3]} Nd5 {[%emt 0:22:15] Against b3} 16. b4 {[%emt 0:00:04]} Bb7 {[%emt 0:05:54][%cal Oa7a5]} 17. Ne1 {[%emt 0:01:13] Against a5} a5 {[%emt 0:06:11]} (17... Nxe3 $11 {should be considered.} 18. fxe3 Nxe1 19. Qxe1 a5) 18. bxa5 {[%emt 0:02:27]} (18. Nxd5 $14 Qxd5 19. Bf3) 18... Nxe1 {[%emt 0:03:16]} 19. Rxe1 {[%emt 0:05:46]} (19. Qxe1 $5 {[%cal Re2c4]} Nxe3 20. fxe3 $14) 19... Nxe3 $1 {[%emt 0:00:11]} 20. Qxe3 {[%emt 0:03:00]} (20. fxe3 $5 {[%cal Re2c4]} c5 21. Na4 $11 (21. Bxc4 Qxa5 22. Qd3 cxd4 $15)) 20... c5 {[%emt 0:01:53]} 21. d5 {[%emt 0:00:33]} (21. Red1 $11) 21... Qxa5 $2 {[%emt 0:01:19]} (21... Bxd5 22. Red1 $14) ({Black should play} 21... exd5 $19 {Threatens to win with ...d4.} 22. e6 d4 23. exf7+ Rxf7) 22. Red1 {[%emt 0:03:26]} (22. d6 $16 Bg5 23. Qxg5 Qxc3 24. Rec1) 22... exd5 {[%emt 0:00:10]} 23. Rxd5 {[%emt 0:00:12]} Bg5 {[%emt 0:06:24]} 24. Qxg5 {[%emt 0:00:39][%cal Og5e3] [#] Strongly threatening Qe3!} ({Of course not} 24. Rxc5 Bxe3 25. Rxa5 Bd2 $15) 24... Qxc3 {[%emt 0:00:03]} 25. Rdd1 {[%emt 0:05:33]} Rfe8 (25... Ba6 $11 {is superior.}) 26. Rac1 {[%emt 0:13:39]} (26. Rab1 $1 $14) 26... Qxe5 $11 {[%emt 0:08:17] The position is equal.} 27. Qxe5 {[%emt 0:00:00]} Rxe5 {[%emt 0:00:01]} 28. Bxc4 {[%emt 0:00:16]} Bc6 {[%emt 0:00:10] Inhibits a4.} 29. Rb1 {[%emt 0:00:00]} Ra8 {[%emt 0:01:24]} 30. Rb6 {[%emt 0:00:00]} Be8 {[%emt 0:01:40]} 31. f3 {[%emt 0:00:00]} Kf8 {[%emt 0:03:40]} 32. Rb7 {[%emt 0:00:00]} Re3 {[%emt 0:00:58]} 33. Rd5 {[%emt 0:00:00]} Rexa3 {[%emt 0:01:42]} ({Don't do} 33... Bc6 {[#]} 34. Rxf7+ $1 Kxf7 35. Re5+ (35. Rxc5+ Kf8 $17) 35... Kf6 36. Rxe3 $16) 34. Rxc5 {[%emt 0:00:00]} Rc3 {[%emt 0:00:47]} 35. Rbc7 {[%emt 0:00:00]} Rc2 {[%emt 0:00:59] Hoping for ...Ra1+.} 36. h4 {[%emt 0:00:00]} g6 {[%emt 0:00:34]} 37. Rc8 {[%emt 0:00:28]} Rxc8 {[%emt 0:00:27]} 38. Rxc8 {[%emt 0:00:01]} Kg7 {[%emt 0:00:42]} 39. Rxe8 {[%emt 0:00:34]} Rxc4 {[%emt 0:00:01]} 40. g3 {[%emt 0:00:00]} Rc2 {[%emt 0:00:00]} 41. Kf1 {[%emt 0:00:39] Weighted Error Value: White=0.27 (precise) /Black=0.21 (precise)} 1/2-1/2

[Event "71st Greek Championship 2022"]
[Site "Athens"]
[Date "2022.12.08"]
[Round "6.4"]
[White "Mitsis, Georgios"]
[Black "Alexakis, Dimitris"]
[Result "1/2-1/2"]
[ECO "A43"]
[WhiteElo "2365"]
[BlackElo "2486"]
[Annotator "TA"]
[PlyCount "161"]
[EventDate "2022.12.04"]
[EventType "tourn"]
[EventCountry "GRE"]
[SourceTitle "playchess.com"]
[Source "ChessBase"]
[SourceQuality "1"]
[TimeControl "40/5400+30:1800+30"]

{[%evp 9,161,34,39,11,12,14,20,12,18,8,14,4,27,24,23,23,26,-20,-41,-8,-11,-11,-11,-11,-10,-11,0,0,0,0,70,57,71,43,31,23,24,11,13,0,42,44,29,59,141,143,173,170,166,0,105,93,100,92,100,102,95,91,87,99,94,112,128,135,141,141,129,74,73,69,236,223,242,257,235,242,247,183,466,466,465,463,455,447,425,404,500,287,291,276,402,396,379,398,374,358,452,439,416,304,300,288,296,270,362,297,370,355,564,286,275,268,300,316,427,48,62,68,70,41,81,48,48,48,48,48,49,48,48,48,54,31,32,25,25,25,25,25,28,28,28,28,28,28,32,32,32,14,22,14,14,0,8,8]} 1. d4 {[%emt 0:00:14]} Nf6 {[%emt 0:00:07]} 2. Nf3 {[%emt 0:00:15]} c5 {[%emt 0:01:20]} 3. d5 {[%emt 0:00:53]} b5 {[%emt 0:00:11]} 4. Bg5 {[%emt 0:02:26]} g6 {[%emt 0:00:33]} 5. Bxf6 {[%emt 0:04:31]} exf6 {[%emt 0:00:08]} 6. e4 {[%emt 0:03:58] A43: Schmid Benoni.} b4 $1 {[%emt 0:07:36][%mdl 4] outshines the older 6...a6.} 7. Nbd2 {[%emt 0:01:32]} Bg7 $1 {[%emt 0:01:03]} 8. Nc4 {[%emt 0:01:43] next Nd6+ is good for White.} O-O {[%emt 0:03:33]} 9. Bd3 {[%emt 0:00:17]} d6 {[%emt 0:08:31]} 10. O-O {[%emt 0:01:47]} Qc7 {[%emt 0:06:31]} 11. Nfd2 {[%emt 0:06:04]} Nd7 {[%emt 0:04:18]} 12. f4 {[%emt 0:05:35]} Nb6 {[%emt 0:05:54] [#]} 13. a4 $146 {[%emt 0:04:56]} (13. f5 {should be considered.}) ({Predecessor:} 13. Qf3 f5 14. e5 Bb7 15. Nxd6 Bxd5 16. Qe2 Rfd8 17. N2c4 Bf8 18. b3 Nc8 19. Ne3 {1-0 (95) Isfan,I (2256)-Ciorgovean,I (2305) Mamaia 2021}) 13... f5 $11 {[%emt 0:14:26]} 14. exf5 {[%emt 0:02:16]} Bb7 {[%emt 0:00:38]} 15. fxg6 {[%emt 0:04:03]} fxg6 {[%emt 0:00:12]} 16. f5 {[%emt 0:00:51]} gxf5 {[%emt 0:18:19]} 17. Rxf5 {[%emt 0:04:50]} Nxd5 {[%emt 0:10:50] Threatens to win with ...Nf4.} 18. Qg4 {[%emt 0:04:57] Against Nf4} (18. Qf3 {feels hotter.} Bd4+ 19. Kh1 Ne3 20. Qg3+) 18... Kh8 {[%emt 0:07:31]} 19. Nf3 {[%emt 0:03:48] Inhibits Bd4+.} Nf6 {[%emt 0:03:09]} (19... Bxb2 $11 20. Rf1 (20. Nxb2 Ne3 $17) 20... Rf6) 20. Qh4 $1 $14 {[%emt 0:06:21] White is more active.} Bxf3 {[%emt 0:03:10]} 21. Rxf3 {[%emt 0:00:22]} (21. gxf3 $5 Ne8 22. Rxf8+ Bxf8 23. Re1 $16) 21... d5 {[%emt 0:00:45]} 22. Ne3 {[%emt 0:01:47][%cal Oe3d5]} c4 {[%emt 0:00:48]} 23. Bf5 {[%emt 0:00:11]} h6 $1 {[%emt 0:01:16]} 24. Rd1 {[%emt 0:01:57]} (24. Kh1 {with more complications.} Qe5 25. Rg1 Ne4 26. Ng4) 24... Qe5 {[%emt 0:00:56]} (24... Qb6 {simplifies} 25. Qd4 Qxd4 26. Rxd4 Rfe8) 25. b3 {[%emt 0:07:48]} cxb3 {[%emt 0:00:40]} 26. cxb3 {[%emt 0:00:04]} Ng8 {[%emt 0:00:29]} (26... a5 $14) 27. Rxd5 $16 {[%emt 0:02:45]} (27. Qxb4 $6 Ne7 28. Qg4 Rab8 $14) 27... Qa1+ {[%emt 0:00:24]} 28. Rd1 {[%emt 0:00:22]} Qe5 {[%emt 0:00:15]} 29. Rd5 {[%emt 0:10:22]} (29. Qxb4 $18 Rad8 30. Rxd8 Rxd8 31. g3) 29... Qa1+ $1 {[%emt 0:00:18]} 30. Rf1 {[%emt 0:01:23]} Qc3 {[%emt 0:00:11][%csl LRb3,LRe3]} 31. Rd3 {[%emt 0:00:15]} Qc5 {[%emt 0:00:15][%cal Oa8d8]} 32. Qc4 {[%emt 0:01:14]} Qb6 {[%emt 0:00:47]} 33. Rf3 {[%emt 0:05:23]} Rae8 {[%emt 0:00:24]} 34. Kf1 $36 {[%emt 0:03:21][%mdl 2048] Black is under strong pressure.} Ne7 {[%emt 0:01:13][%cal Bg8e7,Be7g6,Bg6f4][%mdl 32]} 35. Be4 {[%emt 0:01:34]} (35. Qg4 {simplifies} Qf6 36. Kg1 Rd8 37. Rxd8 Rxd8 38. Bc2) 35... Ng6 {[%emt 0:00:40] And now ...Ne5 would win.} 36. a5 $1 {[%emt 0:01:49]} Rxf3+ {[%emt 0:00:17]} 37. gxf3 {[%emt 0:00:13]} Qf6 {[%emt 0:00:15] [#]} 38. Qc6 {[%emt 0:02:43]} (38. Qxb4 $6 Ne5 39. Rd6 Qf4 $11) (38. Qc7 $142 $1) 38... Qxc6 {[%emt 0:00:30]} 39. Bxc6 {[%emt 0:00:06]} Rc8 {[%emt 0:00:50]} (39... Ne5 $14 40. Bxe8 Nxd3) 40. Be4 $1 $18 {[%emt 0:00:00]} Nf4 {[%emt 0:00:00]} 41. Rd7 {[%emt 0:03:18]} Rc1+ {[%emt 0:06:49]} 42. Kf2 {[%emt 0:03:29] aiming for Rd8+.} Bc3 {[%emt 0:11:02]} 43. Nf5 {[%emt 0:12:37]} (43. Rxa7 Be1+ 44. Kg1 Bh4+ 45. Nf1 Ne2+ 46. Kg2 Nf4+ 47. Kg1 Ne2+ 48. Kg2 Nf4+ 49. Kg1 $11) (43. Rh7+ $6 Kg8) 43... Nh3+ $2 {[%emt 0:10:58]} (43... Be1+ 44. Ke3 Ng2+ 45. Kd4 (45. Ke2 Nf4+ 46. Ke3 Ng2+ 47. Kd4 Rd1+ 48. Bd3 Nf4 $18) 45... Rd1+ 46. Bd3 Nf4) 44. Kg3 {[%emt 0:01:14]} Ng5 {[%emt 0:00:12]} 45. Kg4 {[%emt 0:02:35]} (45. Rxa7 Rg1+ 46. Kf4 Nh3+ 47. Ke3 Re1+ 48. Kd3 Nf2+ 49. Kc4 Nxe4 $18) (45. Nxh6 Rg1+ 46. Kf4 Ne6+ 47. Ke3 Rg7 $18) 45... Rg1+ {[%emt 0:01:13]} 46. Kh5 {[%emt 0:01:39]} Ne6 {[%emt 0:00:42] ( -> ...Nf4+)} 47. Ng3 {[%emt 0:03:28]} (47. Nxh6 $2 Nf4+ 48. Kh4 Bf6#) (47. Kxh6 Rg6+ 48. Kxg6 Nf8+ 49. Kf7 Nxd7 $18) 47... Rg2 {[%emt 0:01:02]} 48. Rh7+ {[%emt 0:01:22]} (48. Kxh6 $2 Rxh2+ 49. Nh5 Bg7+ 50. Rxg7 Nxg7 $19) 48... Kg8 {[%emt 0:00:02]} 49. Rxa7 {[%emt 0:00:16]} (49. Kxh6 $2 {is the wrong capture.} Rxh2+ 50. Nh5 Bd2+ 51. Kg6 (51. f4 $2 Nxf4 52. Rg7+ Kf8 $19) 51... Nf8+ 52. Kf5 Nxh7 $19) 49... Rxh2+ {[%emt 0:01:03]} (49... Kf8 {is a better defense.} 50. Kg4 (50. Kxh6 Rxh2+ 51. Nh5 Bg7+ 52. Kg6 Rg2+ 53. Kf5 Nd4+ 54. Kf4 Ne6+ 55. Kf5 Nd4+ 56. Kf4 Ne6+ 57. Kf5 $11) 50... Rxh2) 50. Kg4 {[%emt 0:01:12]} h5+ {[%emt 0:02:15]} 51. Nxh5 {[%emt 0:04:13]} Rg2+ {[%emt 0:00:09] [#]} 52. Ng3 $1 {[%emt 0:00:42] Black must now prevent Bd5.} Kf8 {[%emt 0:00:51]} 53. f4 {[%emt 0:02:11]} Rg1 {[%emt 0:00:30]} 54. Kf3 {[%emt 0:00:49]} Nd4+ {[%emt 0:00:52]} 55. Kf2 {[%emt 0:00:05]} Ra1 {[%emt 0:00:07] [#]} 56. Bd5 $1 {[%emt 0:01:52]} Be1+ {[%emt 0:00:52]} 57. Ke3 {[%emt 0:01:18] Hoping for Ne4.} Nc2+ {[%emt 0:00:32]} 58. Kf3 {[%emt 0:00:08] Strongly threatening Nf5.} Rd1 {[%emt 0:00:34]} (58... Nd4+ $142 59. Kg4 Bxg3) 59. Be4 {[%emt 0:00:32]} Nd4+ {[%emt 0:00:14]} 60. Kg4 {[%emt 0:00:06] a6 is the strong threat.} Bxg3 {[%emt 0:00:41]} 61. Kxg3 {[%emt 0:00:08]} Nxb3 {[%emt 0:00:30][%mdl 4096] Endgame KRB-KRN} 62. Rb7 $2 {[%emt 0:01:57]} ({White should try} 62. Bc2 $18 Rd2 63. Bxb3 (63. Ra8+ Ke7 $16) 63... Rd3+ 64. Kf2 Rxb3 65. a6) 62... Nxa5 {[%emt 0:00:23]} 63. Rxb4 {[%emt 0:00:05]} Rc1 {[%emt 0:00:23]} 64. Bd5 {[%emt 0:01:41]} Ke7 {[%emt 0:00:43]} 65. Kg4 {[%emt 0:00:17]} Rc5 {[%emt 0:00:19]} 66. Ba2 {[%emt 0:00:19]} Rc2 {[%emt 0:00:36]} 67. Re4+ {[%emt 0:00:23]} Kf8 {[%emt 0:00:21]} 68. Be6 {[%emt 0:00:22]} Nb7 {[%emt 0:00:18]} 69. Bd5 {[%emt 0:00:47]} Rc7 {[%emt 0:00:42]} 70. Rb4 {[%emt 0:00:18]} Nd6 {[%emt 0:00:41]} 71. Rb6 {[%emt 0:00:27]} Ke7 {[%emt 0:00:09]} 72. Rb1 {[%emt 0:00:48]} Kf6 {[%emt 0:00:16]} 73. Re1 {[%emt 0:00:22] Re6+ would kill now.} Re7 {[%emt 0:00:17] Against Re6+} 74. Ra1 {[%emt 0:00:30]} Rg7+ {[%emt 0:00:31]} 75. Kf3 {[%emt 0:00:05]} Rc7 {[%emt 0:00:48]} 76. Ra6 {[%emt 0:00:18]} Ke7 {[%emt 0:00:12]} 77. Kg4 {[%emt 0:00:08]} Rc5 {[%emt 0:00:34]} 78. Ba2 {[%emt 0:00:21]} Rc1 {[%emt 0:00:58] The position is equal.} 79. Ra7+ {[%emt 0:00:14]} Kf6 {[%emt 0:00:03]} 80. Rd7 {[%emt 0:00:10]} Rd1 {[%emt 0:00:22]} 81. Bb3 {[%emt 0:00:59] White really could win this.   Weighted Error Value: White=0.22 (precise) /Black=0.27 (precise)} 1/2-1/2

[Event "71st Greek Championship 2022"]
[Site "Athens"]
[Date "2022.12.08"]
[Round "6.5"]
[White "Trimitzios, Petros"]
[Black "Marinakis, Hristos"]
[Result "1-0"]
[ECO "A07"]
[WhiteElo "2358"]
[BlackElo "2118"]
[Annotator "TA"]
[PlyCount "75"]
[EventDate "2022.12.04"]
[EventType "tourn"]
[EventCountry "GRE"]
[SourceTitle "playchess.com"]
[Source "ChessBase"]
[SourceQuality "1"]
[TimeControl "40/5400+30:1800+30"]

{[%evp 12,75,30,24,28,0,0,0,0,0,11,0,0,7,8,22,27,17,28,22,49,22,154,117,122,101,119,37,48,40,115,-12,-15,-71,-75,-76,-68,-81,-12,-12,-16,-18,-8,-11,-16,-11,0,0,54,47,94,84,98,101,222,211,226,227,222,231,1295,1185,5393,5385,29998,29999]} 1. Nf3 {[%emt 0:00:15]} d5 {[%emt 0:00:11]} 2. g3 {[%emt 0:00:11]} Nf6 {[%emt 0:00:31]} 3. Bg2 {[%emt 0:00:09]} c6 {[%emt 0:00:17]} 4. O-O {[%emt 0:00:18]} e6 {[%emt 0:01:22]} 5. d3 {[%emt 0:01:32]} Nbd7 {[%emt 0:03:51]} 6. Nbd2 {[%emt 0:01:09]} Bd6 {[%emt 0:01:37]} 7. e4 {[%emt 0:00:17]} O-O {[%emt 0:00:28] A07: Réti Opening: New York and Capablanca Systems.} 8. Qe2 {[%emt 0:03:06] Hoping for e5.} e5 {[%emt 0:00:33]} 9. exd5 {[%emt 0:03:35]} cxd5 {[%emt 0:00:17] The position is equal.} 10. c4 {[%emt 0:00:02] [#]} Re8 $146 {[%emt 0:28:14]} ({Predecessor:} 10... d4 11. Ng5 Ne8 12. Nde4 Be7 13. f4 h6 14. Nf3 f5 15. Nf2 exf4 16. Bxf4 Bf6 {1-0 (28) Damljanovic,B (2596)-Bergsson,S (2340) Obrenovac 2008}) 11. cxd5 {[%emt 0:03:30]} Nxd5 {[%emt 0:00:13]} 12. Nc4 {[%emt 0:02:57]} Bc7 {[%emt 0:04:08]} 13. Re1 {[%emt 0:07:22]} b6 {[%emt 0:10:08] [#]} 14. Nd4 $1 {[%emt 0:11:40]} Bb7 {[%emt 0:06:49]} 15. Nb5 $36 {[%emt 0:00:20][%mdl 2048] White has good play.} Bc6 {[%emt 0:05:59]} 16. Ncd6 {[%emt 0:13:52]} Rf8 {[%emt 0:07:34]} (16... Bxd6 $11 17. Nxd6 Re6) 17. Nxc7 {[%emt 0:07:03] White has more active pieces. The black rooks are badly placed.} Qxc7 {[%emt 0:00:04]} 18. Nf5 {[%emt 0:00:09][%cal Oc1h6]} Rfe8 {[%emt 0:07:08]} 19. Bd2 {[%emt 0:14:04]} ({White should play} 19. Qg4 $16 {[%csl Gf5][%cal Rg4g7]} g6 20. Bd2) 19... N7f6 $14 {[%emt 0:05:43]} 20. Rac1 {[%emt 0:01:16][%cal Od2h6]} Qd7 {[%emt 0:00:59] [#]} ({Black should try} 20... Rac8 $1 $14) 21. Ne3 {[%emt 0:03:24]} (21. Bh3 $1 $16 {[%cal Of5h6] aiming for Nh6+!} Re6 22. Nh4) 21... Ne7 $11 {[%emt 0:06:02]} 22. Nc4 {[%emt 0:06:10]} (22. Bb4 $11 {remains equal.} Bxg2 23. Bxe7 Rxe7 24. Kxg2) 22... Bxg2 $17 {[%emt 0:00:08]} 23. Kxg2 {[%emt 0:00:04]} Nc6 {[%emt 0:00:34]} 24. Bc3 {[%emt 0:00:44][%cal Rc4e5] [#]} Rad8 {[%emt 0:00:45]} ({Much worse is} 24... Nd4 25. Bxd4 exd4 26. Qf3 $11) (24... Nd5 $1 $17) 25. Qf3 $11 {[%emt 0:00:53][%cal Rc4e5]} Nd4 {[%emt 0:02:20]} 26. Bxd4 {[%emt 0:01:41]} Qxd4 {[%emt 0:00:05]} 27. b3 {[%emt 0:04:20]} h6 {[%emt 0:04:03]} 28. Re3 {[%emt 0:01:01]} b5 {[%emt 0:00:23]} (28... Re6 $5 {[%cal Rb6b5]}) 29. Na5 {[%emt 0:00:26][%cal Bc4a5,Ba5c6,Bc6e5,Be5g4][%mdl 32]} Nd5 {[%emt 0:01:55]} (29... Rd7 $11) 30. Re4 $1 $14 {[%emt 0:00:48]} Qb6 {[%emt 0:00:10]} (30... Qb2 $14 31. Rc6 Qxa2) 31. Nc6 $16 {[%emt 0:00:29]} Rc8 {[%emt 0:00:10]} 32. Nxe5 {[%emt 0:00:06]} Rxc1 {[%emt 0:01:54] Loses the game.} (32... Nf6 $16 33. Rxc8 Rxc8) 33. Qxf7+ $18 {[%emt 0:00:05]} (33. Nxf7 $2 {is the wrong capture.} Rf8 34. Re2 Qb7 35. Nxh6+ gxh6 $19) 33... Kh7 {[%emt 0:00:02] White must now prevent ...Qe6.} 34. Qxe8 {[%emt 0:00:42] Threatens to win with Nf7. Really sharp!} Rc2 {[%emt 0:00:48]} 35. Ng4 {[%emt 0:01:03]} ({Resist} 35. Qf7 $6 Nf6 36. Rf4 Rxa2) 35... Nc3 $2 {[%emt 0:01:22]} (35... Qc6 36. Qxc6 Rxc6) 36. Re6 {[%emt 0:00:37] Threatening mate with Qg6+.} Qb7+ {[%emt 0:00:44]} 37. Kh3 {[%emt 0:00:03] White wants to mate with Qg6+.} Nd5 {[%emt 0:00:24]} 38. Qg6+ {[%emt 0:00:17] Weighted Error Value: White=0.17 (very precise) /Black=0.42} 1-0